fUSD/lending_fUSD_20240502
["ID","MTS","AMOUNT","RATE_DAILY","PERIOD"]
[325251913,1714654239270,-346.87788656,0.00036999,2]
[325251914,1714654239280,-155.0,0.00036999,2]
[325251915,1714654239290,-2294.03063281,0.00036999,5]
[325251916,1714654239300,-500.0,0.00036999,5]
[325251917,1714654239311,-492.74773615,0.00036999,120]
[325251918,1714654239322,-500.0,0.00036999,2]
[325251919,1714654239333,-500.0,0.00036999,2]
[325251921,1714654239344,-500.0,0.00036999,2]
[325251922,1714654239355,-50000.0,0.00037,17]
[325251923,1714654239366,-50000.0,0.00037,27]
[325251924,1714654239377,-4534.0,0.00037,60]
[325251925,1714654239391,-356.91250222,0.0003731,10]
[325251926,1714654239409,-632.3423478,0.0003731,2]
[325251927,1714654239421,-174.05055866,0.0003731,7]
[325251929,1714654239433,-356.91250218,0.00037315,10]
[325251930,1714654239444,-356.91250218,0.00037319,10]
[325251931,1714654239454,-356.91250218,0.00037324,10]
[325251932,1714654239465,-356.91250218,0.00037329,10]
[325251933,1714654239477,-632.34234778,0.0003733,2]
[325251934,1714654239489,-356.91250218,0.00037333,10]
[325251935,1714654239500,-356.91250218,0.00037338,10]
[325251936,1714654239510,-356.91250218,0.00037342,10]
[325251938,1714654239520,-356.91250218,0.00037347,10]
[325251939,1714654239530,-632.34234778,0.00037349,2]
[325251940,1714654239539,-356.91250218,0.00037352,10]
[325251941,1714654239549,-356.91250218,0.00037356,10]
[325251942,1714654239558,-356.91250218,0.00037361,10]
[325251943,1714654239568,-156.18,0.00037399,2]
[325251944,1714654239578,-156.18,0.00037399,2]
[325251945,1714654239589,-156.18,0.000374,2]
[325251946,1714654239599,-156.18,0.000374,2]
[325251947,1714654239609,-156.18,0.000374,2]
[325251948,1714654239618,-156.18,0.000374,2]
[325251949,1714654239627,-156.18,0.000374,2]
[325251950,1714654239637,-156.18,0.000374,2]
[325251951,1714654239647,-156.18,0.000374,2]
[325251952,1714654239657,-209.99236181,0.00037407,4]
[325251953,1714654239666,-212.81621361,0.00037408,4]
[325251954,1714654239675,-10622.15,0.00037408,7]
[325251955,1714654239685,-10622.15,0.00037408,7]
[325251956,1714654239694,-3032.4068,0.00037409,4]
[325251957,1714654239703,-500.0,0.00037409,2]
[325251958,1714654239712,-10622.15,0.00037409,7]
[325251959,1714654239721,-10622.15,0.00037409,7]
[325251960,1714654239730,-10622.15,0.00037409,7]
[325251961,1714654239739,-10622.15,0.00037409,7]
[325251962,1714654239748,-10622.15,0.00037409,7]
[325251963,1714654239758,-10622.15,0.00037409,7]
[325251964,1714654239767,-10622.15,0.00037409,7]
[325251965,1714654239778,-10622.15,0.00037409,7]
[325251966,1714654239787,-10622.15,0.00037409,7]
[325251967,1714654239797,-10622.15,0.00037409,7]
[325251968,1714654239806,-10622.15,0.00037409,7]
[325251969,1714654239815,-10622.15,0.00037409,7]
[325251970,1714654239825,-10622.15,0.00037409,7]
[325251971,1714654239834,-10622.15,0.00037409,7]
[325251972,1714654239843,-10622.15,0.00037409,7]
[325251973,1714654239852,-10622.15,0.00037409,7]
[325251974,1714654239861,-10622.15,0.00037409,7]
[325251975,1714654239871,-10622.15,0.00037409,7]
[325251976,1714654239880,-10622.15,0.00037409,7]
[325251977,1714654239889,-10622.15,0.00037409,7]
[325251978,1714654239900,-10622.15,0.00037409,7]
[325251979,1714654239909,-10622.38901977,0.00037409,7]
[325251980,1714654239919,-100812.74783176,0.00037409,9]
[325251981,1714654239932,-54460.38442056,0.00037409,9]
[325251982,1714654239943,-420.42973759,0.00037409,9]
[325251986,1714654240451,-250.0,0.0003,60]
[325251987,1714654240462,-905.55296579,0.0003,60]
[325251988,1714654240483,-230.24138681,0.0003,60]
[325251989,1714654240493,-3410.07,0.00036989,10]
[325251990,1714654240502,-2408.20740399,0.00037409,9]
[325251991,1714654240514,-305.8055,0.00037409,9]
[325251992,1714654240534,-1037.71701762,0.00037409,9]
[325251993,1714654240546,-608.15,0.00037409,9]
[325251994,1714654240558,-3569.76000002,0.00037409,9]
[325251995,1714654240569,-1134.86572808,0.00037409,9]
[325251996,1714654240580,-351.53423179,0.00037409,9]
[325251997,1714654240592,-522.48010452,0.00037409,9]
[325251998,1714654240627,-412229.42813246,0.00037409,9]
[325251999,1714654240643,-28118.73536768,0.00037409,9]
[325252000,1714654240657,-6820.72228175,0.00037409,9]
[325252001,1714654240668,-58871.37824527,0.00037409,9]
[325252002,1714654240680,-983.2,0.00037409,9]
[325252046,1714654242710,-376.28896906,0.00025999,2]
[325252047,1714654242723,-94.92797424,0.00025999,2]
[325252048,1714654242733,-938.07718872,0.00025999,2]
[325252049,1714654242763,-1551.18866746,0.00025999,2]
[325252050,1714654242776,-117.59395173,0.00025999,2]
[325252051,1714654242786,-373.3513492,0.0003584,10]
[325252056,1714654243560,-296.53382806,0.0003584,10]
[325252057,1714654243570,-2447.30617214,0.00035999,4]
[325252058,1714654243597,-415.68909921,0.00035999,4]
[325252059,1714654243638,-269.11271872,0.00035999,4]
[325252060,1714654243650,-685.50165271,0.00035999,4]
[325252061,1714654243662,-361.3072026,0.00035999,4]
[325252062,1714654243673,-2975.87880002,0.00035999,4]
[325252075,1714654246991,-589.23,0.00035999,4]
[325252076,1714654247004,-21464.96912018,0.00035999,4]
[325252077,1714654247014,-154.08,0.0003693,2]
[325252078,1714654247024,-96345.47198699,0.00037409,9]
[325252079,1714654247035,-2790.15765489,0.00037409,9]
[325252080,1714654247053,-182999.99999994,0.00037409,9]
[325252081,1714654247080,-764.19248184,0.00037409,9]
[325252082,1714654247242,-445.83558659,0.00037409,9]
[325252083,1714654247255,-19199.9999998,0.00037409,9]
[325252084,1714654247268,-30500.0,0.00037409,9]
[325252085,1714654247281,-2926.52036443,0.00037409,9]
[325252086,1714654247294,-1539.6205832,0.00037409,9]
[325252088,1714654247309,-4110.54916989,0.00037409,9]
[325252090,1714654318722,463.88524644,6.94e-05,2]
[325252091,1714654378285,26000.0,0.00025,120]
[325252113,1714655431836,-500.59083383,0.00012878,2]
[325252114,1714655431846,-219.8585772,0.0001288,2]
[325252115,1714655431855,-300.0,0.00017157,2]
[325252116,1714655431866,-2000.0,0.0002,15]
[325252117,1714655431875,-563.61,0.00021644,2]
[325252118,1714655431885,-6755.24293226,0.000219,2]
[325252119,1714655431895,-213.00013481,0.00023,2]
[325252120,1714655432224,-2307.44308,0.00023,2]
[325252121,1714655432286,-6515.81625508,0.00023,2]
[325252122,1714655432298,-256.269,0.00023,2]
[325252167,1714655438192,-289.06058461,0.000176,2]
[325252168,1714655438549,-5016.93941539,0.000176,2]
[325252169,1714655438560,-8394.41522335,0.00023,2]
[325252170,1714655438569,-1999.89651016,0.000234,2]
[325252171,1714655438579,-1291.3552,0.0002388,2]
[325252172,1714655438588,-103211.39365114,0.0002398,2]
[325252173,1714655440149,-638.29106417,0.0002398,2]
[325252174,1714655440160,-57561.91742411,0.0002398,2]
[325252175,1714655440170,-431.95467805,0.00024,2]
[325252176,1714655440180,-2000.0,0.00024699,3]
[325252177,1714655440189,-200.0,0.00024776,2]
[325252178,1714655440198,-250.0,0.00024779,2]
[325252179,1714655440207,-500.0,0.00024819,2]
[325252180,1714655440216,-1980.86305746,0.00024944,2]
[325252181,1714655440287,-19.13694254,0.00024944,2]
[325252182,1714655440297,-293.29822192,0.00025,2]
[325252183,1714655440307,-258.17625557,0.00025,2]
[325252184,1714655440316,-443.481164,0.00025,2]
[325252185,1714655440325,-1036.73785114,0.00025,2]
[325252186,1714655440335,-500.0,0.00025,2]
[325252187,1714655440344,-2212.20569301,0.00025,2]
[325252188,1714655440354,-1041.0025071,0.00025,2]
[325252189,1714655440363,-37393.75485043,0.00025,2]
[325252190,1714655440372,-167.56442339,0.00025,2]
[325252191,1714655440381,-250.0,0.00025112,2]
[325252192,1714655440390,-2725.92,0.00025881,2]
[325252194,1714655440399,-2684.26,0.00026448,2]
[325252196,1714655440408,-716.61260252,0.00026448,30]
[325252199,1714655440420,-338.7934603,0.00026448,30]
[325252200,1714655440430,-1739.53742045,0.00027,2]
[325252201,1714655440439,-563.61,0.00027714,2]
[325252202,1714655440448,-154.08,0.00027797,2]
[325252203,1714655440458,-186.59,0.0002999,2]
[325252204,1714655440467,-5000.0,0.0003,14]
[325252205,1714655440476,-5675.33834492,0.0003,2]
[325252206,1714655440485,-10000.0,0.0003,9]
[325252207,1714655440495,-19342.27079902,0.0003,4]
[325252208,1714655440504,-1385.7943526,0.00030256,60]
[325252209,1714655440513,-774.05040688,0.00030257,4]
[325252210,1714655440523,-180.0,0.00030258,2]
[325252211,1714655440531,-5000.0,0.00031,14]
[325252212,1714655440541,-5000.0,0.00032,14]
[325252213,1714655440550,-154.08,0.000325,2]
[325252214,1714655440561,-5000.0,0.00033,14]
[325252215,1714655440570,-160.71,0.00033748,2]
[325252216,1714655440579,-563.61,0.00033785,2]
[325252217,1714655440589,-5000.0,0.00034,14]
[325252218,1714655440598,-5000.0,0.00035,21]
[325252219,1714655440607,-176.68,0.00035376,120]
[325252220,1714655440617,-29208.99476558,0.00035434,4]
[325252221,1714655440626,-17071.24738236,0.00035435,2]
[325252222,1714655440639,-1155.16794609,0.00035435,2]
[325252223,1714655440651,-3874.07487155,0.00035435,2]
[325252224,1714655440660,-515.691039,0.00035539,120]
[325252225,1714655440670,-669.88517726,0.0003584,10]
[325252226,1714655440681,-5000.0,0.00036,21]
[325252227,1714655440690,-1000.0,0.00036,11]
[325252228,1714655440699,-220.73595912,0.00036064,2]
[325252229,1714655440708,-183.15684478,0.00036154,10]
[325252230,1714655440727,-2263.88315522,0.00036154,10]
[325252231,1714655440736,-2185.16867197,0.00036162,2]
[325252232,1714655440752,-314.17046918,0.00036162,2]
[325252233,1714655440764,-500.0,0.00036164,7]
[325252234,1714655440774,-2880.44659336,0.00036164,7]
[325252235,1714655440786,-588.32340664,0.00036164,7]
[325252236,1714655440795,-509.86314975,0.00036164,7]
[325252237,1714655440805,-500.0,0.00036164,7]
[325252238,1714655440815,-2176.29,0.00036164,7]
[325252239,1714655440825,-500.0,0.00036164,7]
[325252240,1714655440834,-328.83258505,0.00036164,7]
[325252241,1714655440847,-171.16741495,0.00036164,7]
[325252242,1714655440856,-3574.5214724,0.00036164,7]
[325252243,1714655440867,-5155.4685276,0.00036164,7]
[325252244,1714655440877,-500.0,0.00036164,7]
[325252245,1714655440887,-105.00205558,0.00036164,7]
[325252246,1714655440899,-394.99794442,0.00036164,7]
[325252247,1714655440908,-500.0,0.00036164,7]
[325252248,1714655440918,-500.0,0.00036164,7]
[325252249,1714655440928,-578.59,0.00036164,7]
[325252250,1714655440940,-517.09,0.00036164,7]
[325252251,1714655440950,-1050.15,0.00036164,7]
[325252252,1714655440959,-500.0,0.00036164,7]
[325252253,1714655440968,-2752.22678217,0.00036164,7]
[325252254,1714655440980,-1052.08321783,0.00036164,7]
[325252255,1714655440989,-500.0,0.00036164,7]
[325252256,1714655440999,-4525.5,0.00036164,7]
[325252257,1714655441009,-500.0,0.00036164,7]
[325252258,1714655441018,-4695.97,0.00036164,7]
[325252259,1714655441027,-2354.72516187,0.00036164,7]
[325252311,1714655443598,-155.0,0.000209,2]
[325252312,1714655443608,-431.95467805,0.00024698,2]
[325252313,1714655443617,-332.59159891,0.00032,4]
[325252314,1714655443626,-29.61483813,0.00036164,7]
[325252315,1714655443635,-190.80892384,0.00036164,7]
[325252316,1714655445961,-2000.0,0.0002,15]
[325252317,1714655445972,-6084.33914369,0.00036163,4]
[325252318,1714655445982,-309.19107616,0.00036164,7]
[325252319,1714655445992,-487.89582958,0.00036164,7]
[325252320,1714655446002,-8870.66,0.00036164,7]
[325252321,1714655446011,-500.0,0.00036164,7]
[325252322,1714655446021,-500.0,0.00036164,7]
[325252323,1714655446031,-896.59,0.00036164,7]
[325252324,1714655446040,-500.0,0.00036164,7]
[325252325,1714655446051,-521.2731804,0.00036164,7]
[325252326,1714655446060,-500.70091742,0.00036164,7]
[325252327,1714655446070,-5493.18,0.00036164,7]
[325252328,1714655446079,-1416.8,0.00036164,7]
[325252329,1714655446088,-3836.81,0.00036164,7]
[325252330,1714655446098,-500.0,0.00036164,7]
[325252331,1714655446108,-7688.62,0.00036164,7]
[325252332,1714655446118,-500.0,0.00036164,7]
[325252333,1714655446127,-500.0,0.00036164,7]
[325252334,1714655446136,-2357.94,0.00036164,7]
[325252335,1714655446146,-521.35337879,0.00036164,7]
[325252336,1714655446155,-500.0,0.00036164,7]
[325252337,1714655446165,-500.0,0.00036164,7]
[325252338,1714655446175,-505.20296445,0.00036164,7]
[325252339,1714655446184,-500.0,0.00036164,7]
[325252340,1714655446195,-3662.28,0.00036164,7]
[325252341,1714655446204,-500.0,0.00036164,7]
[325252342,1714655446214,-694.67,0.00036164,7]
[325252343,1714655446224,-500.0,0.00036164,7]
[325252344,1714655446233,-4335.90098434,0.00036164,7]
[325252345,1714655446246,-206.32901566,0.00036164,7]
[325252346,1714655446256,-6870.01,0.00036164,7]
[325252347,1714655446265,-9503.2,0.00036164,7]
[325252348,1714655446274,-500.0,0.00036164,7]
[325252349,1714655446283,-500.0,0.00036164,7]
[325252350,1714655446293,-500.0,0.00036164,7]
[325252351,1714655446302,-7056.62,0.00036164,7]
[325252352,1714655446311,-151.69145157,0.00036164,7]
[325252353,1714655446320,-500.0,0.00036164,7]
[325252354,1714655446329,-500.0,0.00036164,7]
[325252355,1714655446338,-500.0,0.00036164,7]
[325252356,1714655446348,-1390.06,0.00036164,7]
[325252357,1714655446357,-6242.83,0.00036164,7]
[325252358,1714655446366,-500.0,0.00036164,7]
[325252359,1714655446375,-1795.74,0.00036164,7]
[325252360,1714655446385,-500.0,0.00036164,7]
[325252361,1714655446394,-500.0,0.00036164,7]
[325252362,1714655446404,-561.58,0.00036164,7]
[325252363,1714655446413,-500.0,0.00036164,7]
[325252364,1714655446422,-4966.07,0.00036164,7]
[325252365,1714655446431,-500.0,0.00036164,7]
[325252366,1714655446443,-530.61,0.00036164,7]
[325252367,1714655446452,-500.0,0.00036164,7]
[325252368,1714655446461,-500.0,0.00036164,7]
[325252369,1714655446471,-1292.22,0.00036164,7]
[325252370,1714655446480,-500.0,0.00036164,7]
[325252371,1714655446490,-32124.15872196,0.00036164,7]
[325252372,1714655446502,-1269.07127804,0.00036164,7]
[325252373,1714655446512,-500.0,0.00036164,7]
[325252374,1714655446521,-1913.21714706,0.00036164,7]
[325252416,1714656632397,-186.53954695,0.00016791,2]
[325252417,1714656632407,-986.36045305,0.00016792,2]
[325252467,1714656638099,-945.417731,0.00016707,2]
[325252468,1714656638110,-1375.79507636,0.00016792,2]
[325252469,1714656638129,-2736.35450372,0.00016793,2]
[325252470,1714656638208,-11917.18596084,0.00016793,2]
[325252471,1714656638269,-4803.72442311,0.00016793,2]
[325252472,1714656638279,-1000.0,0.00017,2]
[325252473,1714656638290,-300.0,0.00017159,2]
[325252474,1714656638299,-2000.0,0.0002,15]
[325252475,1714656638310,-155.0,0.000209,2]
[325252476,1714656638319,-161.39,0.00021644,2]
[325252477,1714656638330,-450.0,0.00023,3]
[325252478,1714656638340,-1999.89651016,0.000234,2]
[325252479,1714656638350,-17599.3852,0.0002388,2]
[325252480,1714656638360,-1540.58,0.00024999,2]
[325252481,1714656638370,-500.0,0.00025,3]
[325252482,1714656638381,-155.0,0.00026453,30]
[325252483,1714656638391,-338.7934603,0.00026453,30]
[325252484,1714656638401,-550.0,0.00027,3]
[325252485,1714656638411,-1739.53742045,0.00027,2]
[325252486,1714656638421,-250.0,0.00028498,2]
[325252487,1714656638432,-200.57,0.00028543,2]
[325252488,1714656638442,-2000.0,0.0002855,2]
[325252489,1714656638451,-154.57,0.00028753,2]
[325252490,1714656638461,-500.0,0.00028935,2]
[325252491,1714656638471,-250.0,0.00028938,2]
[325252492,1714656638480,-600.0,0.00029,3]
[325252493,1714656638490,-200.0,0.0002906,2]
[325252494,1714656638500,-167.9,0.00029583,120]
[325252495,1714656638510,-19342.27079902,0.00030967,4]
[325252496,1714656638519,-5675.33834492,0.00030968,2]
[325252497,1714656638530,-1385.7943526,0.00030969,60]
[325252498,1714656638539,-774.05040688,0.0003097,4]
[325252499,1714656638549,-180.0,0.00030971,2]
[325252500,1714656638559,-150.0,0.00031738,2]
[325252501,1714656638569,-332.59159891,0.00032,4]
[325252502,1714656638579,-200.57,0.00032111,2]
[325252503,1714656638589,-154.57,0.00032401,2]
[325252504,1714656638599,-500.0,0.00034251,2]
[325252505,1714656638609,-515.691039,0.00034356,120]
[325252506,1714656638618,-206.55506001,0.000349,2]
[325252507,1714656638631,-2433.89,0.0003499,10]
[325252508,1714656638642,-48217.90718495,0.00035,15]
[325252509,1714656638672,-692.51,0.00035,15]
[325252510,1714656638684,-1089.58281505,0.00035,15]
[325252511,1714656638694,-33.36125968,0.00035,25]
[325252647,1714656640289,-6131.8392,0.00035,25]
[325252653,1714656640394,-43834.79954032,0.00035,25]
[325252654,1714656640404,-1000.0,0.00035,2]
[325252655,1714656640414,-374.49,0.00035342,2]
[325252656,1714656640424,-338.05,0.00035342,2]
[325252657,1714656640434,-176.75,0.0003539,2]
[325252658,1714656640444,-29208.99476558,0.00035399,4]
[325252659,1714656640454,-25000.0,0.000354,2]
[325252660,1714656640464,-3072.5236,0.000354,2]
[325252661,1714656640474,-17452.74522574,0.000355,2]
[325252662,1714656640484,-200.57,0.00035679,2]
[325252663,1714656640494,-669.88517726,0.0003584,10]
[325252664,1714656640503,-33599.999999,0.0003588,2]
[325252665,1714656640513,-150.0,0.00035943,2]
[325252666,1714656640525,-150.0,0.00035968,2]
[325252667,1714656640535,-50000.0,0.00036,16]
[325252668,1714656640546,-50000.0,0.00036,26]
[325252669,1714656640555,-1122.88588893,0.00036,2]
[325252670,1714656640565,-154.57,0.00036049,2]
[325252671,1714656640575,-3234.5679,0.00036063,2]
[325252672,1714656640585,-159.35716118,0.00036064,8]
[325252673,1714656640595,-316.1711739,0.00036064,2]
[325252674,1714656640605,-27762.26002303,0.00036137,6]
[325252675,1714656640644,-154867.85088236,0.00036137,6]
[325252677,1714656640661,-480.83351075,0.00036137,6]
[325252685,1714656643275,-1763.25743292,0.00036137,6]
[325252686,1714656643287,-1015.43009579,0.00036137,6]
[325252687,1714656643299,-547.624316,0.00036137,6]
[325252688,1714656643311,-392.4809798,0.00036137,6]
[325252689,1714656643360,-2027.92253999,0.00036137,6]
[325252690,1714656644168,-16343.76212001,0.00036137,6]
[325252691,1714656644242,-7160.06582164,0.00036137,6]
[325252693,1714656648063,-1000.0,0.00036064,120]
[325252694,1714656648073,-5662.26233005,0.00036137,6]
[325252695,1714656648088,-49910.97904296,0.00036137,6]
[325252696,1714656648102,-809.68945,0.00036137,6]
[325252697,1714656648154,-12182.11968285,0.00036137,6]
[325252698,1714656648166,-25574.52361261,0.00036137,6]
[325252699,1714656648179,-1160.73983021,0.00036137,6]
[325252717,1714657832600,-1000.0,0.00016685,2]
[325252718,1714657832827,-186.53954695,0.00016693,2]
[325252719,1714657832837,-300.0,0.00016694,2]
[325252720,1714657832846,-3866.6309,0.00017159,2]
[325252721,1714657832855,-491.50155305,0.00017259,2]
[325252722,1714657833068,-5844.39999999,0.00017259,2]
[325252739,1714657838374,-376.22629757,0.00017259,2]
[325252740,1714657838621,-9287.87214939,0.00017259,2]
[325252741,1714657838631,-1054.0,0.000179,2]
[325252742,1714657838645,-2000.0,0.0002,15]
[325252743,1714657838654,-155.0,0.000209,2]
[325252744,1714657838663,-479.06,0.00021644,2]
[325252745,1714657838672,-479.06,0.00027714,2]
[325252746,1714657838681,-1739.53742045,0.00029999,2]
[325252747,1714657838691,-774.05040688,0.00030559,4]
[325252748,1714657838701,-7403.06210331,0.00030559,4]
[325252749,1714657838790,-11939.20869571,0.00030559,4]
[325252750,1714657838800,-5675.33834492,0.0003056,2]
[325252751,1714657838810,-250.0,0.00030561,2]
[325252752,1714657838819,-2000.0,0.00030561,2]
[325252753,1714657838828,-167.9,0.00030667,120]
[325252754,1714657838837,-500.0,0.00030677,2]
[325252755,1714657838847,-154.57,0.00030738,2]
[325252756,1714657838856,-200.0,0.00030986,2]
[325252757,1714657838866,-200.57,0.0003104,2]
[325252758,1714657838875,-250.0,0.00031284,2]
[325252759,1714657838885,-150.0,0.00031743,2]
[325252760,1714657838898,-151.75,0.00031743,2]
[325252761,1714657838907,-332.59159891,0.0003283,4]
[325252762,1714657838916,-1758.24,0.00032831,2]
[325252763,1714657838925,-180.0,0.00033745,2]
[325252764,1714657838933,-479.06,0.00033785,2]
[325252765,1714657838942,-5000.0,0.00034,21]
[325252766,1714657838952,-515.691039,0.0003433,120]
[325252767,1714657838962,-1498.10987747,0.00034354,2]
[325252768,1714657838971,-50000.0,0.00035,15]
[325252769,1714657838981,-35751.39464373,0.00035,25]
[325252854,1714657844155,-528.8,0.00035,25]
[325252855,1714657844168,-13719.80535627,0.00035,25]
[325252856,1714657844177,-30842.0,0.00035,21]
[325252857,1714657844186,-358.0,0.00035,5]
[325252865,1714657844440,-1412.2,0.00035399,2]
[325252866,1714657844460,-29208.99476558,0.00035615,4]
[325252867,1714657844470,-20000.0,0.00035616,2]
[325252868,1714657844480,-6135.76579992,0.00035616,3]
[325252869,1714657844490,-150.0,0.00035685,2]
[325252870,1714657844499,-669.88517726,0.0003584,10]
[325252871,1714657844509,-3497.19944605,0.00035845,2]
[325252872,1714657844519,-20113.12552389,0.00035888,30]
[325252873,1714657844530,-159.3571611,0.000359,8]
[325252874,1714657844540,-150.16,0.00035989,2]
[325252875,1714657844550,-150.16,0.00035989,2]
[325252876,1714657844559,-150.16,0.00035989,2]
[325252877,1714657844569,-150.16,0.00035989,2]
[325252878,1714657844579,-150.16,0.00035989,2]
[325252879,1714657844589,-150.16,0.00035989,2]
[325252880,1714657844599,-150.16,0.00035989,2]
[325252881,1714657844609,-150.16,0.00035989,2]
[325252882,1714657844619,-46701.60226184,0.00035999,5]
[325252883,1714657844629,-500.0,0.00035999,7]
[325252884,1714657844638,-500.0,0.00035999,7]
[325252885,1714657844652,-500.0,0.00035999,7]
[325252886,1714657844661,-500.0,0.00035999,7]
[325252887,1714657844670,-500.0,0.00035999,7]
[325252888,1714657844678,-401.67,0.00035999,7]
[325252889,1714657844688,-50000.0,0.00036,16]
[325252890,1714657844698,-50000.0,0.00036,26]
[325252891,1714657844707,-151.0,0.00036,7]
[325252892,1714657844716,-159.3571611,0.00036043,8]
[325252893,1714657844726,-416.66666,0.00036064,2]
[325252894,1714657844735,-1398.65979841,0.00036137,4]
[325252895,1714657844745,-394.06670891,0.00036137,4]
[325252896,1714657844755,-155.0,0.00036137,2]
[325252897,1714657844764,-2972.25333034,0.00036137,4]
[325252898,1714657844773,-2294.03063281,0.00036137,5]
[325252899,1714657844783,-1392.92993436,0.00036137,4]
[325252900,1714657844792,-155.0,0.00036137,2]
[325252901,1714657844801,-500.0,0.00036137,5]
[325252902,1714657844810,-492.74773615,0.00036137,120]
[325252903,1714657844820,-5963.40254606,0.00036137,2]
[325252904,1714657844833,-1562.39291835,0.00036137,2]
[325252905,1714657844844,-42715.33389318,0.00036137,2]
[325252906,1714657844854,-164.05998848,0.00036137,2]
[325252907,1714657844863,-6225.18464572,0.00036137,4]
[325252908,1714657844872,-595.84801306,0.00036137,2]
[325252909,1714657844881,-500.0,0.00036137,2]
[325252910,1714657844894,-500.0,0.00036137,2]
[325252911,1714657844903,-500.0,0.00036137,2]
[325252912,1714657844912,-2361.21044923,0.00036162,4]
[325252913,1714657844921,-1414.19008353,0.00036162,60]
[325252914,1714657844930,-641.92594795,0.00036162,4]
[325252915,1714657844939,-480.33223456,0.00036162,4]
[325252916,1714657844949,-162.17689798,0.00036162,4]
[325252917,1714657844958,-555.65019664,0.00036162,4]
[325252918,1714657844968,-280.64802336,0.00036162,4]
[325252919,1714657844977,-225.59221538,0.00036162,2]
[325252920,1714657844987,-155.07770979,0.00036162,2]
[325252921,1714657844996,-1262.53141957,0.00036162,4]
[325252922,1714657845005,-155.82270179,0.00036162,4]
[325252923,1714657845015,-363.46064478,0.00036162,4]
[325252924,1714657845025,-370.19548805,0.00036162,4]
[325252925,1714657845035,-306.50856276,0.00036162,4]
[325252926,1714657845044,-634.89639912,0.00036162,4]
[325252927,1714657845054,-323.58044345,0.00036162,4]
[325252928,1714657845063,-26830.56378422,0.00036162,4]
[325252929,1714657845072,-2499.33914115,0.00036163,2]
[325252930,1714657845082,-151.0,0.00036163,7]
[325252931,1714657845092,-4262.78,0.00036163,7]
[325252932,1714657845102,-4262.78,0.00036163,7]
[325252933,1714657845112,-4262.78,0.00036163,7]
[325252934,1714657845120,-4262.78,0.00036163,7]
[325252935,1714657845130,-4262.78,0.00036163,7]
[325252936,1714657845139,-4262.78,0.00036163,7]
[325252937,1714657845152,-4262.78,0.00036163,7]
[325252938,1714657845161,-4262.78,0.00036163,7]
[325252939,1714657845172,-4262.78,0.00036163,7]
[325252940,1714657845183,-4262.78,0.00036163,7]
[325252941,1714657845194,-4262.78,0.00036163,7]
[325252942,1714657845204,-4262.78,0.00036163,7]
[325252943,1714657845215,-4262.78,0.00036163,7]
[325252944,1714657845224,-4262.78,0.00036163,7]
[325252945,1714657845234,-4262.78,0.00036163,7]
[325252946,1714657845243,-4262.78,0.00036163,7]
[325252947,1714657845253,-4262.78,0.00036163,7]
[325252948,1714657845262,-4262.78,0.00036163,7]
[325252949,1714657845273,-4262.78,0.00036163,7]
[325252950,1714657845284,-4262.78,0.00036163,7]
[325252951,1714657845297,-4262.78,0.00036163,7]
[325252952,1714657845307,-4262.78,0.00036163,7]
[325252953,1714657845318,-4262.78,0.00036163,7]
[325252954,1714657845328,-4262.89744204,0.00036163,7]
[325252955,1714657845338,-888.0,0.00036163,3]
[325252956,1714657845349,-325979.91541185,0.00036164,9]
[325252957,1714657846754,-32539.52590479,0.00036164,9]
[325252958,1714657846766,-39356.9,0.00036164,9]
[325252959,1714657850157,-51768.77644117,0.00036164,9]
[325252960,1714657870444,200000.0,0.00013,2]
[325252961,1714658039309,9999.999999,0.00025,120]
[325252964,1714658132063,-4000.0,0.000119,2]